fUSD/lending_fUSD_20251215
["ID","MTS","AMOUNT","RATE_DAILY","PERIOD"]
[398517960,1765775457322,-1359.796361,0.00016986,2]
[398517961,1765775457338,-4647.583261,0.00016986,2]
[398517962,1765775457352,-1359.796361,0.00016986,2]
[398517963,1765775457367,-4647.583261,0.00016986,2]
[398517964,1765775457380,-1359.796361,0.00016986,2]
[398517965,1765775457395,-4647.583261,0.00016986,2]
[398517966,1765775457408,-1359.796361,0.00016986,2]
[398517967,1765775457423,-151.0,0.00016986,2]
[398517968,1765775457439,-4647.583261,0.00016986,2]
[398517969,1765775457453,-1359.796361,0.00016986,2]
[398517970,1765775457470,-151.0,0.00016986,2]
[398517971,1765775457489,-4647.583261,0.00016986,2]
[398517972,1765775457504,-1359.796361,0.00016986,2]
[398517973,1765775457520,-151.0,0.00016986,2]
[398517974,1765775457535,-4647.583261,0.00016986,2]
[398517975,1765775457550,-151.0,0.00016986,2]
[398517976,1765775457564,-1359.796358,0.00016986,2]
[398517977,1765775457578,-151.0,0.00016986,2]
[398517978,1765775457593,-4647.583269,0.00016986,2]
[398517979,1765775457607,-151.0,0.00016986,2]
[398517980,1765775457621,-151.0,0.00016986,2]
[398517981,1765775457636,-151.0,0.00016986,2]
[398517982,1765775457652,-151.0,0.00016986,2]
[398517983,1765775457667,-151.0,0.00016986,2]
[398517984,1765775457683,-168.570478,0.00016986,2]
[398517985,1765775457697,-718.48757,0.00016986,2]
[398517986,1765775457713,-718.48757,0.00016986,2]
[398517987,1765775457728,-718.48757,0.00016986,2]
[398517988,1765775457742,-718.48757,0.00016986,2]
[398517989,1765775457756,-718.48757,0.00016986,2]
[398517990,1765775457771,-718.48757,0.00016986,2]
[398517991,1765775457787,-374311.14606248,0.00016986,2]
[398517992,1765775457802,-150.0,0.00016986,2]
[398517993,1765775457817,-150.0,0.00016986,2]
[398517994,1765775457830,-150.0,0.00016986,2]
[398517995,1765775457844,-150.0,0.00016986,2]
[398517996,1765775457858,-150.0,0.00016986,2]
[398517997,1765775457873,-150.0,0.00016986,2]
[398517998,1765775457888,-829.93707155,0.0001699,2]
[398517999,1765775457902,-829.93707155,0.0001699,2]
[398518000,1765775457916,-151.0,0.00016991,2]
[398518001,1765775457930,-151.0,0.00016997,2]
[398518002,1765775457944,-250.0,0.00016999,2]
[398518003,1765775457958,-150.0,0.00016999,2]
[398518004,1765775457972,-152.0,0.00016999,2]
[398518005,1765775457986,-184.079,0.00016999,2]
[398518006,1765775458002,-150.23,0.00016999,2]
[398518007,1765775458016,-151.493,0.00016999,2]
[398518008,1765775458031,-150.0,0.00016999,2]
[398518009,1765775458045,-206.581,0.00016999,2]
[398518010,1765775458059,-150.318,0.00016999,2]
[398518011,1765775458073,-163.174,0.00016999,2]
[398518012,1765775458087,-273.368,0.00016999,2]
[398518013,1765775458101,-150.0,0.00016999,2]
[398518014,1765775458115,-151.0,0.00016999,2]
[398518015,1765775458129,-152.096,0.00016999,2]
[398518016,1765775458143,-3451.0,0.00016999,2]
[398518017,1765775458156,-1324.0,0.00016999,2]
[398518018,1765775458173,-1607.0,0.00016999,2]
[398518019,1765775458189,-611.0,0.00016999,2]
[398518020,1765775458204,-1261.0,0.00016999,2]
[398518021,1765775458219,-589.0,0.00016999,2]
[398518022,1765775458236,-300.0,0.00016999,2]
[398518023,1765775458250,-189.75866884,0.00016999,2]
[398518024,1765775458266,-300.0,0.00016999,2]
[398518025,1765775458281,-188.46005207,0.00016999,2]
[398518026,1765775458296,-500.0,0.00016999,2]
[398518027,1765775458310,-500.0,0.00016999,2]
[398518028,1765775458327,-500.0,0.00016999,2]
[398518029,1765775458340,-500.0,0.00016999,2]
[398518030,1765775458356,-318.2,0.00016999,2]
[398518031,1765775458371,-500.0,0.00017,2]
[398518032,1765775458386,-150.0,0.00017,2]
[398518033,1765775458401,-500.0,0.00017,2]
[398518034,1765775458414,-500.0,0.00017,2]
[398518035,1765775458428,-1132.0,0.00017,2]
[398518036,1765775458442,-500.0,0.00017,2]
[398518037,1765775458459,-500.0,0.00017,2]
[398518038,1765775458476,-671.0,0.00017,2]
[398518039,1765775458489,-150.0,0.00017,2]
[398518040,1765775458505,-4398265.90474711,0.00017,2]
[398518041,1765775462156,-234043.41577687,0.00017,2]
[398518042,1765775462169,-59110.34930554,0.00017,2]
[398518043,1765775462503,-500.0,0.00016619,2]
[398518044,1765775462513,-186.78059288,0.00016619,2]
[398518045,1765775462524,-313.21940712,0.00016619,2]
[398518046,1765775462538,-500.0,0.00016619,2]
[398518047,1765775462557,-500.0,0.00016619,2]
[398518048,1765775462577,-500.0,0.00016619,2]
[398518049,1765775462588,-500.0,0.00016619,2]
[398518050,1765775462598,-500.0,0.00016619,2]
[398518051,1765775462607,-500.0,0.00016619,2]
[398518052,1765775462618,-500.0,0.00016619,2]
[398518053,1765775462628,-622.59145977,0.00016619,2]
[398518054,1765775462638,-630.98725868,0.00016619,2]
[398518055,1765775462649,-500.0,0.00016619,2]
[398518056,1765775462659,-500.0,0.00016619,2]
[398518057,1765775462671,-500.0,0.00016619,2]
[398518058,1765775462682,-500.0,0.00016619,2]
[398518059,1765775462691,-500.0,0.00016619,2]
[398518060,1765775462702,-500.0,0.00016619,2]
[398518061,1765775462714,-500.0,0.00016619,2]
[398518062,1765775462731,-500.0,0.00016619,2]
[398518063,1765775462751,-6016.97586089,0.00016873,2]
[398518064,1765775463179,-500.0,0.00016619,2]
[398518065,1765775463191,-500.0,0.00016619,2]
[398518066,1765775463201,-281.89246576,0.00016619,2]
[398518067,1765775463212,-218.10753424,0.00016619,2]
[398518068,1765775463221,-500.0,0.00016619,2]
[398518069,1765775463231,-500.0,0.00016619,2]
[398518070,1765775463240,-372.07809542,0.00016619,2]
[398518071,1765775463250,-500.0,0.00016619,2]
[398518072,1765775463260,-505.02413911,0.00016873,2]
[398518073,1765775463270,-596.48103069,0.00016985,2]
[398518074,1765775463281,-122.00653931,0.00016985,2]
[398518075,1765775463290,-507.85335019,0.00016985,2]
[398518076,1765775463302,-210.63421981,0.00016985,2]
[398518077,1765775463311,-689.25578019,0.00016986,2]
[398518078,1765775463322,-29.23178981,0.00016986,2]
[398518079,1765775463331,-340.90832069,0.00016986,2]
[398518080,1765775463342,-377.57924931,0.00016986,2]
[398518081,1765775463351,-718.48757,0.00016986,2]
[398518082,1765775463361,-338.55268907,0.00016986,2]
[398518083,1765775463376,-379.93488093,0.00016986,2]
[398518084,1765775463386,-228.28243053,0.00016986,2]
[398518085,1765775463397,-490.20513947,0.00016986,2]
[398518086,1765775463407,-718.48757,0.00016986,2]
[398518087,1765775463416,-718.48757,0.00016986,2]
[398518088,1765775463425,-718.48757,0.00016986,2]
[398518089,1765775463434,-718.48757,0.00016986,2]
[398518090,1765775463444,-718.487569,0.00016986,2]
[398518091,1765775463454,-92056.33545644,0.00017,2]
[398518093,1765775467976,650.0,0.00015718,2]
[398518094,1765775655232,557.33,7.936e-05,2]
[398518095,1765775655334,557.33,8.353e-05,2]
[398518096,1765775655524,557.33,8.771e-05,2]
[398518097,1765775655740,557.33,9.189e-05,2]
[398518098,1765775655942,557.33,9.606e-05,2]
[398518099,1765775656965,557.33,0.00010024,2]
[398518100,1765775657148,557.33,0.00010442,2]
[398518101,1765775657348,557.33,0.00010859,2]
[398518102,1765775657545,557.33,0.00011277,2]
[398518103,1765775657741,557.33,0.00011695,2]
[398518104,1765775657976,557.33,0.00012112,2]
[398518105,1765775658126,557.33,0.0001253,2]
[398518106,1765775658329,557.33,0.00012948,2]
[398518107,1765775658515,557.33,0.00013365,2]
[398518108,1765775658714,557.33,0.00013783,2]
[398518109,1765775658913,557.33,0.00014201,2]
[398518110,1765775659116,557.33,0.00014618,2]
[398518111,1765775659315,557.33,0.00015036,2]
[398518112,1765775659496,557.33,0.00015454,2]
[398518114,1765775686931,3524.0,0.000123,5]
[398518115,1765775742646,1000.0,0.00015672,2]
[398518116,1765775807886,183.06,0.0001571,2]
[398518117,1765775868595,889.253052,0.00015718,2]
[398518118,1765775902703,595.700402,0.00015658,2]
[398518119,1765776047014,499.76,0.000225,120]
[398518124,1765776061468,5930.8,0.00015568,2]
[398518131,1765776135349,189.43,0.0001557,2]
[398518165,1765776334508,150.0,0.00015288,2]
[398518166,1765776334717,150.0,0.00015288,2]
[398518167,1765776334955,150.0,0.00015288,2]
[398518168,1765776336203,150.0,0.00015523,2]
[398518169,1765776341778,150.0,0.00015288,2]
[398518170,1765776341975,150.0,0.00015288,2]
[398518171,1765776342126,150.0,0.00015288,2]
[398518172,1765776349280,150.0,0.00015288,2]
[398518173,1765776349363,150.0,0.00015288,2]
[398518174,1765776354471,151.9773931,0.00015288,2]
[398518175,1765776357371,150.0,0.00015288,2]
[398518181,1765776500415,1774.10113749,0.00015,2]
[398518182,1765776522222,782.13420715,0.00015637,2]
[398518183,1765776538095,172.45,0.00015459,2]
[398518232,1765776613509,-174.67871069,0.00015737,2]
[398518241,1765776618378,-70.15398931,0.00015737,2]
[398518242,1765776618401,-172.55942929,0.00015737,2]
[398518243,1765776620533,-22.44057071,0.00015737,2]
[398518248,1765776631440,-195.0,0.00015836,2]
[398518250,1765776631450,-200.0,0.00015837,2]
[398518251,1765776631459,-557.33,0.00015871,2]
[398518252,1765776631468,-1588.12575687,0.00016,2]
[398518253,1765776631477,-166.66,0.00016063,2]
[398518254,1765776631486,-168.0,0.00016088,2]
[398518255,1765776631495,-150.0,0.00016137,2]
[398518256,1765776631504,-150.0,0.00016137,2]
[398518257,1765776631513,-150.0,0.00016137,2]
[398518258,1765776631522,-150.0,0.00016137,2]
[398518259,1765776631531,-81.48170499,0.0001614,2]
[398518260,1765776631555,-118.51829501,0.0001614,2]
[398518261,1765776631564,-168.77158648,0.0001614,2]
[398518262,1765776631573,-168.0,0.00016194,2]
[398518263,1765776631583,-1200.0,0.00016199,2]
[398518264,1765776631592,-300.0,0.00016199,2]
[398518265,1765776631601,-167.0,0.000162,2]
[398518266,1765776631611,-5000.00608279,0.000162,5]
[398518267,1765776631620,-168.71,0.000162,2]
[398518268,1765776631629,-172.45,0.00016318,2]
[398518270,1765776631638,-195.55,0.00016368,2]
[398518271,1765776631647,-1007.0,0.00016379,2]
[398518272,1765776631657,-373.88,0.00016404,2]
[398518273,1765776631666,-900.20387095,0.00016419,2]
[398518274,1765776631677,-601.79612905,0.00016419,2]
[398518275,1765776631686,-703.52514472,0.00016419,2]
[398518276,1765776631696,-300.0,0.00016419,2]
[398518277,1765776631706,-1224.62,0.00016428,2]
[398518278,1765776631715,-8918.59,0.00016438,2]
[398518279,1765776631725,-150.0,0.00016438,2]
[398518281,1765776631735,-300.0,0.00016438,2]
[398518282,1765776631744,-150.0,0.00016438,2]
[398518283,1765776631753,-150.0,0.00016438,2]
[398518284,1765776631762,-150.0,0.00016438,2]
[398518285,1765776631772,-150.29,0.00016438,2]
[398518286,1765776631783,-1007.0,0.00016484,2]
[398518287,1765776631793,-300.0,0.000165,2]
[398518289,1765776631802,-150.0,0.000165,2]
[398518290,1765776631811,-340.88,0.000165,2]
[398518291,1765776631823,-300.0,0.000165,2]
[398518292,1765776631831,-150.0,0.000165,2]
[398518293,1765776631841,-550.0,0.000165,2]
[398518294,1765776631851,-208.00306807,0.0001651,2]
[398518295,1765776631860,-301.14144576,0.0001651,2]
[398518296,1765776631870,-151.0,0.0001651,2]
[398518297,1765776631879,-151.0,0.0001651,2]
[398518298,1765776631890,-151.0,0.0001651,2]
[398518299,1765776631899,-151.0,0.0001651,2]
[398518300,1765776631908,-151.0,0.0001651,2]
[398518301,1765776631917,-151.0,0.0001651,2]
[398518302,1765776631926,-151.0,0.0001651,2]
[398518303,1765776631935,-574.12855637,0.0001651,2]
[398518304,1765776631945,-200.0,0.0001651,2]
[398518305,1765776631954,-500.0,0.00016516,2]
[398518306,1765776631964,-932.70753021,0.00016516,2]
[398518307,1765776631980,-74.29246979,0.00016516,2]
[398518308,1765776631989,-662.9347487,0.0001652,2]
[398518309,1765776632002,-141.6042513,0.0001652,2]
[398518310,1765776632012,-897.5754,0.0001652,2]
[398518311,1765776632023,-393.4356506,0.0001652,2]
[398518312,1765776632035,-723.07387013,0.0001652,2]
[398518315,1765776637484,-3375.5170958,0.0001652,2]
[398518316,1765776637495,-2080.69131843,0.0001652,2]
[398518317,1765776637542,-1633.79146504,0.0001652,2]
[398518318,1765776637551,-150.0,0.00016552,2]
[398518319,1765776637560,-321.16929356,0.00016574,2]
[398518320,1765776637569,-500.0,0.00016574,2]
[398518321,1765776637578,-500.0,0.00016574,2]
[398518322,1765776637587,-150.45258463,0.00016574,2]
[398518323,1765776637603,-349.54741537,0.00016574,2]
[398518324,1765776637612,-208.00867727,0.00016574,2]
[398518325,1765776637622,-138.4995143,0.00016574,2]
[398518326,1765776637634,-361.5004857,0.00016574,2]
[398518327,1765776637643,-500.0,0.00016574,2]
[398518328,1765776637652,-500.0,0.00016574,2]
[398518329,1765776637662,-329.56475666,0.00016574,2]
[398518330,1765776637672,-170.43524334,0.00016574,2]
[398518331,1765776637683,-434.15167475,0.00016574,2]
[398518332,1765776637692,-500.0,0.00016574,2]
[398518333,1765776637701,-500.0,0.00016574,2]
[398518334,1765776637711,-500.0,0.00016574,2]
[398518335,1765776637720,-292.33191763,0.00016574,2]
[398518336,1765776637731,-500.0,0.00016574,2]
[398518337,1765776637740,-500.0,0.00016574,2]
[398518338,1765776637749,-500.0,0.00016574,2]
[398518339,1765776637759,-500.0,0.00016574,2]
[398518340,1765776637768,-500.0,0.00016574,2]
[398518341,1765776637777,-500.0,0.00016574,2]
[398518342,1765776637786,-500.0,0.00016574,2]
[398518343,1765776637795,-465.30351191,0.00016574,2]
[398518344,1765776637804,-500.0,0.00016574,2]
[398518345,1765776637814,-500.0,0.00016574,2]
[398518346,1765776637823,-500.0,0.00016574,2]
[398518347,1765776637832,-500.0,0.00016574,2]
[398518348,1765776637841,-500.0,0.00016574,2]
[398518349,1765776637850,-500.0,0.00016574,2]
[398518350,1765776637859,-500.0,0.00016574,2]
[398518352,1765776637868,-500.0,0.00016574,2]
[398518353,1765776637878,-500.0,0.00016574,2]
[398518355,1765776637887,-1007.0,0.00016575,2]
[398518357,1765776637896,-164.32,0.0001661,2]
[398518359,1765776637905,-1026.44,0.00016618,2]
[398518360,1765776637914,-151.14,0.00016619,2]
[398518362,1765776637923,-500.0,0.00016619,2]
[398518364,1765776637932,-513.93139164,0.00016619,2]
[398518366,1765776637941,-508.98134456,0.00016619,2]
[398518368,1765776637950,-500.0,0.00016619,2]
[398518370,1765776637959,-500.0,0.00016619,2]
[398518373,1765776637969,-154.78563184,0.0001662,2]
[398518374,1765776637979,-885.16573496,0.00016641,2]
[398518376,1765776637988,-426.9124411,0.0001666,2]
[398518377,1765776638000,-140.27306633,0.0001666,2]
[398518378,1765776638009,-433.72693367,0.00016699,2]
[398518379,1765776638020,-66.27306633,0.00016699,2]
[398518380,1765776638031,-150.0,0.00016699,2]
[398518381,1765776638040,-65.27693367,0.00016699,2]
[398518382,1765776638055,-549.72306633,0.00016699,2]
[398518383,1765776638068,-150.0,0.00016699,2]
[398518384,1765776638078,-500.0,0.00016699,2]
[398518385,1765776638087,-220.00289002,0.00016699,2]
[398518386,1765776638108,-279.99710998,0.00016699,2]
[398518387,1765776638118,-500.0,0.00016699,2]
[398518388,1765776638128,-150.0,0.00016699,2]
[398518389,1765776638138,-150.0,0.00016699,2]
[398518390,1765776638148,-239.64788952,0.00016699,2]
[398518391,1765776638167,-908.35211048,0.00016699,2]
[398518392,1765776638177,-500.0,0.00016699,2]
[398518393,1765776638187,-150.0,0.00016699,2]
[398518394,1765776638195,-131.04772026,0.00016712,2]
[398518395,1765776639617,-18.95227974,0.00016712,2]
[398518396,1765776639627,-500.0,0.00016719,2]
[398518397,1765776639636,-181.84972126,0.00016719,2]
[398518398,1765776639647,-318.15027874,0.00016719,2]
[398518399,1765776639656,-500.0,0.00016719,2]
[398518400,1765776639666,-500.0,0.00016719,2]
[398518401,1765776639675,-510.38572399,0.00016719,2]
[398518402,1765776639684,-4621.87005612,0.00016731,2]
[398518403,1765776639696,-4629.00584961,0.00016731,2]
[398518404,1765776639705,-206.01147421,0.00016773,2]
[398518405,1765776639716,-500.0,0.00016773,2]
[398518406,1765776639727,-9250.87590573,0.00016773,2]
[398518407,1765776639737,-150.0,0.00016808,2]
[398518408,1765776639746,-9250.87590573,0.00016816,2]
[398518409,1765776639755,-1989.58517,0.0001683,2]
[398518410,1765776639764,-500.0,0.00016836,2]
[398518411,1765776639775,-150.0,0.00016836,2]
[398518412,1765776639783,-615.0,0.00016836,2]
[398518413,1765776639794,-150.0,0.00016836,2]
[398518414,1765776639803,-500.0,0.00016836,2]
[398518415,1765776639815,-500.0,0.00016836,2]
[398518416,1765776639824,-500.0,0.00016836,2]
[398518417,1765776639836,-1148.0,0.00016836,2]
[398518418,1765776639846,-150.0,0.00016836,2]
[398518419,1765776639857,-500.0,0.00016836,2]
[398518420,1765776639868,-151.48227111,0.00016839,2]
[398518421,1765776639878,-150.0,0.00016845,2]
[398518422,1765776639887,-150.0,0.00016849,2]
[398518423,1765776639896,-9250.87590573,0.00016858,2]
[398518425,1765776639905,-849.242,0.00016863,2]
[398518426,1765776639914,-200.0,0.00016864,2]
[398518427,1765776639923,-368.34745462,0.00016867,2]
[398518428,1765776639932,-2426.0,0.00016872,2]
[398518429,1765776639941,-368.34745458,0.00016873,2]
[398518430,1765776639950,-368.34745458,0.00016878,2]
[398518431,1765776639960,-368.34745458,0.00016884,2]
[398518432,1765776639969,-403.00473745,0.00016885,2]
[398518433,1765776639979,-10000.0,0.00016886,2]
[398518434,1765776639988,-368.34745458,0.00016889,2]
[398518435,1765776639998,-1026.44,0.00016892,2]
[398518436,1765776640008,-368.34745458,0.00016895,2]
[398518437,1765776640017,-368.34745458,0.000169,2]
[398518438,1765776640026,-9250.87590573,0.000169,2]
[398518439,1765776640035,-166.0,0.000169,2]
[398518440,1765776640044,-166.0,0.000169,2]
[398518441,1765776640053,-166.0,0.000169,2]
[398518442,1765776640065,-1000.0,0.000169,2]
[398518443,1765776640074,-991.72993006,0.000169,2]
[398518444,1765776640083,-12434.03227449,0.000169,2]
[398518445,1765776640092,-481.25235646,0.00016916,2]
[398518446,1765776640102,-153.81187726,0.00016926,2]
[398518447,1765776640111,-166.66,0.00016946,2]
[398518448,1765776640120,-511.37210944,0.00016966,2]
[398518449,1765776640129,-500.0,0.00016966,2]
[398518450,1765776640138,-500.0,0.00016966,2]
[398518451,1765776640148,-318.2,0.00016966,2]
[398518452,1765776640157,-1502.0,0.00016967,2]
[398518453,1765776640167,-4782.0,0.00016967,2]
[398518454,1765776640177,-150.0,0.00016967,2]
[398518455,1765776640187,-669194.9600381,0.00016967,2]
[398518456,1765776640198,-16981.3122243,0.00016967,2]
[398518457,1765776640207,-151729.5591759,0.00016967,2]
[398518458,1765776640216,-6033.378159,0.00016967,2]
[398518459,1765776640227,-67747.2412917,0.00016967,2]
[398518460,1765776640236,-2309.6585202,0.00016967,2]
[398518461,1765776640245,-500.0,0.00016973,2]
[398518462,1765776640255,-500.0,0.00016973,2]
[398518463,1765776640264,-498.60294116,0.00016973,2]
[398518464,1765776640274,-500.0,0.00016973,2]
[398518465,1765776640284,-500.0,0.00016973,2]
[398518466,1765776640294,-500.0,0.00016973,2]
[398518467,1765776640303,-535.77849194,0.00016973,2]
[398518468,1765776640312,-500.0,0.00016973,2]
[398518469,1765776640321,-500.0,0.00016973,2]
[398518470,1765776640330,-515.49595078,0.00016973,2]
[398518471,1765776640339,-315.21795353,0.00016973,2]
[398518472,1765776640349,-500.0,0.00016973,2]
[398518473,1765776640359,-500.0,0.00016973,2]
[398518474,1765776640368,-500.0,0.00016973,2]
[398518475,1765776640377,-544.96479342,0.00016973,2]
[398518476,1765776640387,-500.0,0.00016973,2]
[398518477,1765776640396,-500.0,0.00016973,2]
[398518478,1765776640406,-500.0,0.00016973,2]
[398518479,1765776640417,-500.0,0.00016973,2]
[398518480,1765776640426,-500.0,0.00016973,2]
[398518481,1765776640436,-500.0,0.00016973,2]
[398518482,1765776640446,-500.0,0.00016973,2]
[398518483,1765776640455,-500.0,0.00016973,2]
[398518484,1765776640464,-500.98827769,0.00016973,2]
[398518485,1765776640473,-500.82958274,0.00016973,2]
[398518486,1765776640483,-500.0,0.00016973,2]
[398518487,1765776640492,-200.0,0.00016973,2]
[398518488,1765776640501,-615.0,0.00016973,2]
[398518489,1765776640510,-150.0,0.00016973,2]
[398518490,1765776640520,-500.0,0.00016973,2]
[398518491,1765776640529,-500.0,0.00016973,2]
[398518492,1765776640538,-500.0,0.00016973,2]
[398518493,1765776640547,-1148.0,0.00016973,2]
[398518494,1765776640555,-150.0,0.00016973,2]
[398518495,1765776640564,-500.0,0.00016973,2]
[398518496,1765776640573,-500.0,0.00016985,2]
[398518497,1765776640581,-500.0,0.00016985,2]
[398518498,1765776640590,-500.0,0.00016985,2]
[398518499,1765776640600,-500.0,0.00016985,2]
[398518500,1765776640610,-500.0,0.00016985,2]
[398518501,1765776640620,-500.0,0.00016985,2]
[398518502,1765776640630,-500.0,0.00016985,2]
[398518503,1765776640639,-272.84521117,0.00016985,2]
[398518504,1765776640651,-500.0,0.00016986,2]
[398518505,1765776640660,-500.0,0.00016986,2]
[398518506,1765776640670,-422.94758095,0.00016986,2]
[398518507,1765776640680,-150.0,0.00016986,2]
[398518508,1765776640689,-150.0,0.00016986,2]
[398518509,1765776640699,-150.0,0.00016986,2]
[398518510,1765776640709,-150.0,0.00016986,2]
[398518511,1765776640719,-150.0,0.00016986,2]
[398518512,1765776640728,-150.0,0.00016986,2]
[398518513,1765776640737,-150.0,0.00016986,2]
[398518514,1765776640746,-150.0,0.00016986,2]
[398518515,1765776640755,-165.21,0.00016986,2]
[398518516,1765776640763,-151.0,0.00016992,2]
[398518517,1765776640773,-642.0,0.00016999,2]
[398518518,1765776640783,-1262.646,0.00016999,2]
[398518519,1765776640792,-911.0,0.00016999,2]
[398518520,1765776640801,-1196.0,0.00016999,2]
[398518521,1765776640810,-4798.0,0.00016999,2]
[398518522,1765776640820,-1328.104,0.00016999,2]
[398518523,1765776640831,-318.19194469,0.00016999,2]
[398518524,1765776640841,-2000.0,0.00016999,2]
[398518525,1765776640851,-2000.0,0.00016999,2]
[398518526,1765776640860,-300.0,0.00016999,2]
[398518527,1765776640870,-556391.30125021,0.00017,2]
[398518528,1765776640879,-290.0,0.00017,2]
[398518529,1765776640887,-3360522.44457128,0.00017,2]
[398518530,1765776643653,-396165.9099782,0.00017,2]
[398518531,1765776643664,-1756.0,0.00017,2]
[398518532,1765776643693,-809286.39055828,0.00017,2]
[398518533,1765776643706,-579.22,0.00017,7]
[398518534,1765776643715,-1000.0,0.00017,2]
[398518535,1765776643724,-1000.0,0.00017,2]
[398518536,1765776643734,-1000.0,0.00017,2]
[398518537,1765776643743,-1000.0,0.00017,2]
[398518538,1765776643752,-1000.0,0.00017,2]
[398518539,1765776643761,-1000.0,0.00017,2]
[398518540,1765776643770,-1000.0,0.00017,2]
[398518541,1765776643779,-1000.0,0.00017,2]
[398518542,1765776643788,-1000.0,0.00017,2]
[398518543,1765776643797,-1000.0,0.00017,2]
[398518544,1765776643806,-1000.0,0.00017,2]
[398518545,1765776643814,-1000.0,0.00017,2]
[398518546,1765776643823,-1000.0,0.00017,2]
[398518547,1765776643832,-1000.0,0.00017,2]
[398518548,1765776643841,-1000.0,0.00017,2]
[398518549,1765776643850,-1000.0,0.00017,2]
[398518550,1765776643859,-1000.0,0.00017,2]
[398518551,1765776643870,-1000.0,0.00017,2]
[398518552,1765776643881,-1000.0,0.00017,2]
[398518553,1765776643890,-1000.0,0.00017,2]
[398518554,1765776643904,-1000.0,0.00017,2]
[398518555,1765776643914,-1000.0,0.00017,2]
[398518556,1765776643924,-1000.0,0.00017,2]
[398518557,1765776643933,-1000.0,0.00017,2]
[398518558,1765776643943,-1000.0,0.00017,2]
[398518559,1765776643952,-1000.0,0.00017,2]
[398518560,1765776643962,-1000.0,0.00017,2]
[398518561,1765776643971,-1026.32552229,0.00017,2]
[398518562,1765776643981,-927698.51,0.00017,2]
[398518563,1765776643991,-1398333.45906486,0.00017,2]
[398518564,1765776644231,-608.052521,0.00016872,2]
[398518565,1765776644245,-2.947479,0.00016872,2]
[398518566,1765776644261,-21489.59464868,0.00017,2]
[398518567,1765776644284,-897.93027432,0.00017,2]
[398518568,1765776644317,-306.23900044,0.00017,2]
[398518569,1765776645553,-300.81129169,0.0001699,2]
[398518570,1765776645666,-318.00863237,0.0001699,2]
[398518571,1765776645726,-105.69827992,0.0001699,2]
[398518572,1765776645736,-724.51820398,0.0001699,2]
[398518573,1765776645747,-724.51820398,0.0001699,2]
[398518574,1765776645759,-954.09204736,0.00017,2]
[398518581,1765776891111,2929.35,0.000225,120]
[398518600,1765777214805,-165.51576475,0.00015933,2]
[398518601,1765777243542,-187.956336,0.00015853,2]
[398518602,1765777243566,-16.50460801,0.00015933,2]
[398518614,1765777288731,-15.21695591,0.00015933,2]
[398518615,1765777288753,-194.31109753,0.00016032,2]
[398518616,1765777292096,-89.68890247,0.00016032,2]
[398518617,1765777292120,-99.05739419,0.00016032,2]
[398518626,1765777348959,-260.07639884,0.00015812,3]
[398518627,1765777350368,-189.01915698,0.00015812,3]
[398518639,1765777453780,-166.68871506,0.00015732,2]
[398518640,1765777455860,-221.0,0.00015732,2]
[398518651,1765777527060,150.0,0.00015288,2]
[398518652,1765777527106,150.0,0.00015288,2]